fUST/lending_fUST_20260201
["ID","MTS","AMOUNT","RATE_DAILY","PERIOD"]
[404144457,1769875610371,-181.16819013,0.00012497,2]
[404144458,1769875625225,-243.45148074,0.00012372,2]
[404144459,1769875655272,-665.83180987,0.00012248,2]
[404144460,1769875748159,-4334.16819013,0.00012248,2]
[404144461,1769875748185,-4756.54851926,0.00012372,2]
[404144462,1769875748210,-150.0,0.0001256,2]
[404144463,1769875748233,-604.0,0.00013009,2]
[404144464,1769875748256,-502.121625,0.00013273,2]
[404144465,1769875748278,-211.72145418,0.00013273,2]
[404144466,1769875748300,-500.0,0.00013273,2]
[404144467,1769875748323,-502.30333023,0.00013273,2]
[404144468,1769875748346,-500.0,0.00013273,2]
[404144469,1769875748558,-500.0,0.00013273,2]
[404144470,1769875748590,-500.0,0.00013273,2]
[404144471,1769875748612,-155.21805538,0.00013699,2]
[404144472,1769875748639,-259.55539897,0.00013699,2]
[404144473,1769875773107,226.87,8.991e-05,2]
[404144474,1769875791636,-2705.70216443,0.00013562,2]
[404144475,1769875791668,-333.29847338,0.00013699,2]
[404144476,1769875791697,-160.9968606,0.00013699,2]
[404144477,1769875791723,-594.86628206,0.00013821,2]
[404144478,1769875791750,-986.47052406,0.00013821,2]
[404144479,1769875791784,-949.37840974,0.0001391,2]
[404144480,1769875814568,340.3,0.00030137,120]
[404144481,1769875827680,-1000.0,0.00015,6]
[404144533,1769875832508,-831.16766705,0.00013771,2]
[404144534,1769875832519,-850.27,0.00013771,2]
[404144535,1769875832530,-524.86494536,0.00013771,2]
[404144536,1769875832542,-1040.82686043,0.00013771,2]
[404144565,1769875838685,-1752.87052716,0.00013771,2]
[404144566,1769875838698,-535.63560766,0.0001391,2]
[404144567,1769875838707,-177.0,0.0001456,2]
[404144568,1769875838717,-1000.0,0.00015277,2]
[404144569,1769875838726,-300.0,0.00015341,2]
[404144570,1769875838737,-10000.0,0.00015342,2]
[404144571,1769875838747,-1705.94,0.00015442,2]
[404144572,1769875838756,-989.58,0.00015559,2]
[404144573,1769875838767,-189.18036809,0.00015711,2]
[404144574,1769875838776,-205.0873135,0.00015811,2]
[404144575,1769875838785,-1299.888961,0.00016151,2]
[404144576,1769875838795,-250.0,0.00016184,2]
[404144577,1769875838804,-6200.0,0.00016203,2]
[404144578,1769875838815,-201.19611381,0.00016437,2]
[404144579,1769875838828,-2000.0,0.00016438,2]
[404144580,1769875838837,-204.0,0.0001656,2]
[404144581,1769875838847,-297.0,0.00016784,2]
[404144582,1769875838856,-1299.888961,0.0001683,2]
[404144583,1769875838867,-1299.888961,0.0001751,2]
[404144584,1769875838876,-1299.888961,0.0001819,2]
[404144585,1769875838887,-14207.240606,0.00018424,2]
[404144586,1769875838897,-457.610027,0.00018501,2]
[404144587,1769875838907,-231.0,0.0001856,2]
[404144588,1769875838917,-189.18036804,0.00018621,2]
[404144589,1769875838927,-1299.888961,0.0001887,2]
[404144590,1769875838936,-605.02855032,0.00019178,12]
[404144591,1769875838950,-1299.888961,0.0001955,2]
[404144592,1769875838959,-258.0,0.0002056,2]
[404144593,1769875838970,-3000.0,0.00021,2]
[404144594,1769875838980,-3000.0,0.0002101,2]
[404144595,1769875838990,-3000.0,0.0002102,2]
[404144596,1769875839000,-3000.0,0.0002103,2]
[404144597,1769875839011,-3000.0,0.0002104,2]
[404144598,1769875839020,-3000.0,0.0002105,2]
[404144599,1769875839031,-3000.0,0.0002106,2]
[404144600,1769875839040,-3000.0,0.0002107,2]
[404144601,1769875839050,-3000.0,0.0002108,2]
[404144602,1769875839059,-3000.0,0.0002109,2]
[404144603,1769875839068,-3000.0,0.000211,2]
[404144604,1769875839078,-3000.0,0.0002111,2]
[404144605,1769875839087,-3000.0,0.0002112,2]
[404144606,1769875839097,-3000.0,0.0002113,2]
[404144607,1769875839107,-3000.0,0.0002114,2]
[404144608,1769875839116,-3000.0,0.0002115,2]
[404144609,1769875839125,-3000.0,0.0002116,2]
[404144610,1769875839135,-3000.0,0.0002117,2]
[404144611,1769875839145,-3000.0,0.0002118,2]
[404144612,1769875839155,-3000.0,0.0002119,2]
[404144613,1769875839172,-3000.0,0.000212,2]
[404144614,1769875839185,-3000.0,0.0002121,2]
[404144615,1769875839198,-3000.0,0.0002122,2]
[404144616,1769875839208,-3000.0,0.0002123,2]
[404144617,1769875839218,-508.15,0.0002123,2]
[404144618,1769875839228,-3000.0,0.0002124,2]
[404144619,1769875839238,-3000.0,0.0002125,2]
[404144620,1769875839248,-3000.0,0.0002126,2]
[404144621,1769875839258,-3000.0,0.0002127,2]
[404144622,1769875839267,-3000.0,0.0002128,2]
[404144623,1769875839278,-3000.0,0.0002129,2]
[404144624,1769875839288,-3000.0,0.000213,2]
[404144625,1769875839298,-3000.0,0.0002131,2]
[404144626,1769875839309,-3000.0,0.0002132,2]
[404144627,1769875839474,-3000.0,0.0002133,2]
[404144628,1769875839484,-3000.0,0.0002134,2]
[404144629,1769875839494,-3000.0,0.0002135,2]
[404144630,1769875839504,-3000.0,0.0002136,2]
[404144631,1769875839515,-3000.0,0.0002137,2]
[404144632,1769875839526,-3000.0,0.0002138,2]
[404144633,1769875839535,-3009.26623,0.0002139,2]
[404144634,1769875839545,-600.0,0.00021429,10]
[404144635,1769875839556,-189.18036804,0.0002153,2]
[404144636,1769875839567,-457.610027,0.00021926,2]
[404144637,1769875839577,-285.0,0.0002256,2]
[404144638,1769875839587,-720.0,0.00023572,10]
[404144639,1769875839596,-189.18036804,0.0002444,2]
[404144640,1769875839606,-312.0,0.0002456,2]
[404144641,1769875839615,-262.86,0.000249,14]
[404144642,1769875839624,-167.25,0.000249,2]
[404144643,1769875839634,-19764.5352313,0.000249,2]
[404144644,1769875839643,-457.610027,0.0002535,2]
[404144645,1769875839653,-864.0,0.00025929,10]
[404144646,1769875839664,-1041.66666667,0.00026219,2]
[404144647,1769875839673,-160.0,0.00026219,2]
[404144648,1769875839682,-339.0,0.0002656,2]
[404144649,1769875839694,-189.18036804,0.00027349,2]
[404144650,1769875839703,-1000.0,0.00028522,30]
[404144651,1769875839712,-366.0,0.0002856,2]
[404144652,1769875839723,-9882.26761564,0.00028765,2]
[404144653,1769875839732,-457.610027,0.00028775,60]
[404144654,1769875839742,-189.18036804,0.00030259,2]
[404144655,1769875839752,-6820.75299865,0.00030465,2]
[404144656,1769875839762,-393.0,0.0003056,2]
[404144657,1769875839771,-1000.0,0.00031374,30]
[404144658,1769875839781,-244.0,0.00031374,30]
[404144659,1769875839791,-457.610027,0.000322,60]
[404144660,1769875839800,-360.65016845,0.0003256,2]
[404144661,1769875839813,-189.18036804,0.00033168,2]
[404144662,1769875839822,-151.0,0.000332,19]
[404144663,1769875839832,-262.86,0.000332,30]
[404144664,1769875839842,-167.25,0.000332,2]
[404144665,1769875839853,-466.12,0.00033698,30]
[404144666,1769875839863,-150.331,0.00033842,2]
[404144667,1769875839873,-487.0,0.00033842,2]
[404144668,1769875839885,-487.0,0.00033842,2]
[404144669,1769875839895,-487.0,0.00033842,2]
[404144670,1769875839906,-487.0,0.00033842,2]
[404144671,1769875839918,-487.0,0.00033842,2]
[404144672,1769875839928,-487.0,0.00033842,2]
[404144673,1769875839941,-827.99,0.00033842,2]
[404144674,1769875839952,-250.0,0.00033879,2]
[404144675,1769875839961,-630.0,0.00033879,2]
[404144676,1769875839971,-2149.0,0.00033879,2]
[404144678,1769875839982,-168.0,0.00034131,2]
[404144679,1769875839991,-168.0,0.00034436,2]
[404144680,1769875840001,-1000.0,0.00034512,30]
[404144681,1769875840010,-492.0,0.00034512,30]
[404144682,1769875840021,-466.12,0.0003452,31]
[404144683,1769875840030,-151.0,0.000347,13]
[404144684,1769875840040,-168.0,0.00034768,2]
[404144685,1769875840049,-216.60600001,0.00034809,2]
[404144686,1769875840060,-169.36596049,0.00034825,2]
[404144687,1769875840070,-169.36596049,0.00034925,2]
[404144688,1769875840080,-168.0,0.00034984,2]
[404144689,1769875840090,-169.36596049,0.00035025,2]
[404144690,1769875840101,-169.36596049,0.00035125,2]
[404144691,1769875840110,-466.12,0.00035342,32]
[404144692,1769875840120,-150.0,0.000354,10]
[404144693,1769875840130,-200.0,0.00035428,120]
[404144694,1769875840139,-150.0,0.00035437,2]
[404144695,1769875840148,-150.0,0.00035437,2]
[404144696,1769875840159,-150.0,0.00035437,2]
[404144697,1769875840168,-150.0,0.00035437,2]
[404144698,1769875840178,-289.5,0.00035574,2]
[404144699,1769875840188,-150.0,0.00035574,2]
[404144700,1769875840200,-150.0,0.00035574,2]
[404144701,1769875840210,-150.0,0.00035574,2]
[404144702,1769875840220,-150.0,0.00035711,2]
[404144703,1769875840232,-150.0,0.00035711,2]
[404144705,1769875840244,-150.0,0.00035711,2]
[404144706,1769875840254,-1490.96184687,0.0003575,7]
[404144707,1769875840266,-1068.74093565,0.0003575,2]
[404144708,1769875840277,-234.26540676,0.0003575,7]
[404144709,1769875840287,-274.92829636,0.0003575,2]
[404144710,1769875840296,-1689.97516517,0.0003575,2]
[404144711,1769875840306,-1669.90771195,0.0003575,2]
[404144712,1769875840315,-230.38604964,0.0003575,2]
[404144713,1769875840325,-414.69488936,0.0003575,2]
[404144714,1769875840335,-2431.1306736,0.0003575,2]
[404144715,1769875840345,-298.52674789,0.0003575,2]
[404144716,1769875840355,-537.34814621,0.0003575,2]
[404144717,1769875840365,-2402.2624381,0.0003575,2]
[404144718,1769875840377,-429.1458876,0.0003575,2]
[404144719,1769875840387,-955.28559325,0.0003575,2]
[404144720,1769875840397,-9882.26761564,0.00035807,3]
[404144721,1769875840406,-20162.00766259,0.00035817,2]
[404144722,1769875840416,-150.0,0.00035848,2]
[404144723,1769875840425,-150.0,0.00035848,2]
[404144724,1769875840436,-150.0,0.00035848,2]
[404144725,1769875840448,-262.86,0.000359,30]
[404144726,1769875840458,-167.25,0.000359,2]
[404144727,1769875840468,-150.0,0.00035985,2]
[404144728,1769875840478,-150.0,0.00035985,2]
[404144729,1769875840489,-150.0,0.00035985,2]
[404144730,1769875840499,-1000.0,0.00036,120]
[404144731,1769875840509,-189.18036804,0.00036078,2]
[404144732,1769875840518,-9573.32711318,0.00036078,2]
[404144733,1769875840528,-9882.26761564,0.00036085,3]
[404144734,1769875840538,-168.0,0.00036085,2]
[404144735,1769875840547,-38610.84818768,0.00036095,30]
[404144736,1769875840557,-250.0,0.00036122,2]
[404144738,1769875840568,-238.20198396,0.00036122,2]
[404144740,1769875840579,-250.0,0.00036122,2]
[404144742,1769875840589,-466.12,0.00036164,33]
[404144743,1769875840598,-200.0,0.00036177,10]
[404144745,1769875840608,-6307840.75871804,0.00036178,20]
[404144747,1769875840623,-555.10436358,0.00036178,20]
[404144748,1769875840634,-8507.97804358,0.00036178,20]
[404144753,1769875841046,-933.90495361,0.00036178,20]
[404144811,1769875846882,-5000.0,0.00020938,2]
[404144812,1769875846894,-293.75257167,0.00021149,2]
[404144813,1769875846904,-189.54911681,0.00021149,2]
[404144814,1769875846914,-879.94,0.00036168,10]
[404144815,1769875846924,-929221.59721966,0.00036178,20]
[404144816,1769875846964,-4204.69379964,0.00036178,20]
[404144819,1769875848047,-424.104,0.00036178,20]
[404144824,1769875910232,-579.57397846,0.0001,2]
[404144825,1769875914375,-358.57525956,0.0001,2]
[404144826,1769875916380,-279.7754916,0.0001,2]
[404144827,1769875918149,-389.13960131,0.0001,2]
[404144830,1769876094072,239.0,0.00030136,120]
[404144838,1769876179326,-3940.36876103,9.703e-05,2]
[404144842,1769876259069,5000.0,9.703e-05,2]
[404144843,1769876266690,393.0,0.00030136,120]
[404144844,1769876281931,5000.0,9.703e-05,2]
[404144856,1769876304986,5000.0,9.703e-05,2]
[404144857,1769876318908,-1200.0,9.8e-05,2]
[404144858,1769876318940,-150.0,9.801e-05,2]
[404144859,1769876318974,-458.49453881,9.9e-05,2]
[404144860,1769876319008,-300.0,9.999e-05,2]
[404144861,1769876319042,-300.0,9.999e-05,2]
[404144862,1769876319072,-300.0,9.999e-05,2]
[404144863,1769876319120,-300.0,9.999e-05,2]
[404144864,1769876319151,-152.24122689,0.0001,2]
[404144865,1769876319183,-174.34718078,0.0001,2]
[404144866,1769876319390,-3433.78,0.0001,2]
[404144867,1769876319498,-3132.45,0.0001,2]
[404144868,1769876319529,-1680.0,0.0001078,2]
[404144869,1769876319559,-75.11,0.00010999,2]
[404144870,1769876319630,-224.89,0.00010999,2]
[404144871,1769876319659,-420.0,0.00010999,2]
[404144872,1769876319687,-239.23,0.000117,2]
[404144873,1769876319717,-204.0,0.000118,2]
[404144874,1769876319746,-1715.0,0.00011858,2]
[404144875,1769876319774,-587.0,0.00012099,2]
[404144876,1769876319802,-500.0,0.00013273,2]
[404144877,1769876319831,-500.0,0.00013273,2]
[404144878,1769876319862,-421.25905883,0.00013273,2]
[404144879,1769876319952,-823.0,0.00013309,2]
[404144880,1769876319981,-250.0,0.00013406,2]
[404144881,1769876320012,-300.0,0.00013673,2]
[404144882,1769876320042,-155.21805538,0.00013699,2]
[404144883,1769876320071,-500.0,0.00013821,2]
[404144884,1769876320100,-451.8102882,0.00013821,2]
[404144885,1769876320130,-1152.0,0.0001464,2]
[404144886,1769876320177,-1122.95331284,0.00016103,2]
[404144887,1769876320283,-490.04668716,0.00016103,2]
[404144888,1769876320316,-611.9006611,0.00016203,2]
[404144889,1769876327862,5000.0,0.00017578,2]
[404144890,1769876335637,2796.11530348,0.00017578,2]
[404144891,1769876335663,2203.88469652,0.00017578,2]
[404144892,1769876345725,-239.23,9.8e-05,2]
[404144913,1769876436890,249.78952268,0.00017578,2]
[404144919,1769876886717,425.34131332,0.00010618,2]
[404144920,1769876895127,1021.0079512,0.00015,2]
[404144922,1769876908758,8553.66073548,0.00015,2]
[404144923,1769876908783,10000.01,0.00015,2]
[404144924,1769876908807,10000.01,0.00015,2]
[404144925,1769876908830,10000.01,0.00015,2]
[404144926,1769876908854,10000.01,0.00015,2]
[404144927,1769876908877,10000.01,0.00015,2]
[404144928,1769876908901,10000.01,0.00015,2]
[404144929,1769876908924,10000.01,0.00015,2]
[404144930,1769876908947,10000.01,0.00015,2]
[404144931,1769876908973,1446.25926452,0.00015,2]
[404144932,1769876909142,8553.75073548,0.00015,2]
[404144933,1769876909165,1067.74912547,0.00015,2]
[404144934,1769876910815,596.1385912,0.000149,2]
[404144935,1769876920622,151.29401002,0.00015,2]
[404144936,1769876923383,1432.62840904,0.0001747,2]
[404144937,1769876923543,6752.19986427,0.000154,2]
[404144938,1769876923565,10000.01,0.000154,2]
[404144939,1769876923587,10000.01,0.000154,2]
[404144940,1769876923609,10000.01,0.000154,2]
[404144941,1769876923633,10000.01,0.000154,2]
[404144942,1769876923656,10000.01,0.000154,2]
[404144943,1769876923683,10000.01,0.000154,2]
[404144944,1769876923709,10000.01,0.000154,2]
[404144945,1769876923731,10000.01,0.000154,2]
[404144946,1769876923754,10000.01,0.000154,2]
[404144947,1769876923780,10000.01,0.000154,2]
[404144948,1769876923802,10000.01,0.000154,2]
[404144949,1769876923824,10000.01,0.000154,2]
[404144950,1769876928661,-5000.0,0.00015246,2]
[404144951,1769876948146,-1563.53221577,0.00015094,2]
[404145042,1769877038672,-500.0,0.00013273,2]
[404145043,1769877038682,-500.0,0.00013273,2]
[404145044,1769877038692,-300.0,0.00013673,2]
[404145045,1769877038702,-500.0,0.00013699,2]
[404145046,1769877038711,-500.0,0.00013699,2]
[404145047,1769877038721,-615.0,0.00013699,2]
[404145048,1769877038731,-828.85776734,0.00013821,2]
[404145049,1769877038740,-1000.0,0.00013821,2]
[404145050,1769877038750,-472.06423266,0.00014221,2]
[404145051,1769877038762,-127.93576734,0.00014221,2]
[404145052,1769877038772,-1000.0,0.00014247,2]
[404145053,1769877038782,-1000.0,0.00014247,2]
[404145054,1769877038791,-1500.0,0.00014368,2]
[404145055,1769877038801,-900.0,0.00014768,2]
[404145056,1769877038811,-1500.0,0.00014795,2]
[404145057,1769877038820,-2000.0,0.00014916,2]
[404145058,1769877038830,-5000.0,0.00014943,2]
[404145059,1769877038839,-514.84311562,0.00014994,2]
[404145060,1769877038849,-300.0,0.00015093,2]
[404145061,1769877038859,-300.0,0.00015093,2]
[404145062,1769877038871,-300.0,0.00015093,2]
[404145063,1769877038882,-300.0,0.00015093,2]
[404145064,1769877038891,-1200.0,0.00015093,2]
[404145065,1769877038901,-3436.46778423,0.00015094,2]
[404145066,1769877038910,-4181.31824445,0.00015242,2]
[404145067,1769877038919,-5000.0,0.00015246,2]
[404145068,1769877038929,-318.12397634,0.00015316,2]
[404145069,1769877038939,-3266.95569897,0.00015342,2]
[404145070,1769877038951,-6335.32430103,0.00015342,2]
[404145071,1769877038960,-10000.0,0.00015342,2]
[404145072,1769877038970,-2000.0,0.00015342,2]
[404145073,1769877038980,-2988542.28238423,0.000154,2]
[404145074,1769877038990,-487.0,0.000154,2]
[404145075,1769877038999,-533.82,0.000154,2]
[404145076,1769877039009,-397.72,0.00015442,2]
[404145077,1769877039019,-2500.0,0.00015464,2]
[404145078,1769877039028,-2568.31,0.00015559,2]
[404145079,1769877039038,-2295.93651999,0.0001589,2]
[404145080,1769877039047,-3000.0,0.00016012,2]
[404145081,1769877039057,-420.0,0.00016517,2]
[404145082,1769877039066,-3500.0,0.0001656,2]
[404145083,1769877039076,-1680.0,0.00016601,2]
[404145084,1769877039085,-1092.17790553,0.00017108,2]
[404145085,1769877039095,-587.0,0.00018075,2]
[404145086,1769877039104,-553.66,0.00018082,3]
[404145087,1769877039114,-4181.3182444,0.00018234,2]
[404145088,1769877039123,-2351.0,0.00018259,2]
[404145089,1769877039133,-3508.12587213,0.0002,7]
[404145090,1769877039142,-5694.98,0.0002,2]
[404145091,1769877039153,-295.72,0.0002,2]
[404145092,1769877039163,-3292.0,0.00020083,2]
[404145093,1769877039173,-449.999999,0.00021,2]
[404145094,1769877039183,-4181.3182444,0.00021226,2]
[404145095,1769877039194,-893.0,0.00022089,2]
[404145096,1769877039204,-170.6405412,0.00024096,2]
[404145097,1769877039214,-4181.3182444,0.00024218,2]
[404145098,1769877039225,-500.0,0.00025,15]
[404145099,1769877039235,-204.31,0.00025808,2]
[404145100,1769877039244,-44542.00485389,0.00026,30]
[404145101,1769877039254,-4181.3182444,0.00027209,2]
[404145102,1769877039263,-180.03960871,0.00028468,2]
[404145103,1769877039273,-213.25464603,0.00030152,2]
[404145104,1769877039282,-347.03,0.00030328,30]
[404145105,1769877039291,-214.87600412,0.00032141,2]
[404145106,1769877039300,-168.0,0.0003286,2]
[404145107,1769877039310,-244.06,0.00032877,10]
[404145108,1769877039320,-508.3023,0.00032877,9]
[404145109,1769877039330,-68298.53731905,0.00033,2]
[404145110,1769877039339,-64190.75565148,0.00033026,4]
[404145111,1769877039349,-276.81,0.00033259,9]
[404145112,1769877039359,-1037662.68731198,0.00033559,2]
[404145113,1769877039368,-694.06,0.00033578,30]
[404145114,1769877039378,-830.43,0.00033598,10]
[404145115,1769877039388,-5694.98,0.000336,14]
[404145116,1769877039397,-295.72,0.000336,30]
[404145117,1769877039408,-172468.24548,0.00033888,2]
[404145118,1769877039417,-151.0,0.00033898,31]
[404145119,1769877039427,-151.0,0.00033898,31]
[404145120,1769877039436,-151.0,0.00033898,31]
[404145121,1769877039445,-2400000.0,0.00033898,2]
[404145122,1769877039455,-353.2249577,0.00033998,2]
[404145123,1769877039464,-100075.070742,0.00034,2]
[404145124,1769877039473,-159.3811763,0.00034908,2]
[404145125,1769877039482,-1000.0,0.00035,120]
[404145126,1769877039491,-3000.0,0.00035,2]
[404145127,1769877039501,-996.79597763,0.00035,10]
[404145128,1769877039511,-200.55776775,0.00035,30]
[404145129,1769877039520,-181.8034479,0.00035038,2]
[404145130,1769877039530,-168.0,0.00035124,2]
[404145131,1769877039539,-150.0,0.00035437,2]
[404145132,1769877039548,-150.0,0.00035437,2]
[404145133,1769877039559,-150.0,0.00035437,2]
[404145134,1769877039570,-150.0,0.00035437,2]
[404145135,1769877039579,-150.0,0.00035437,2]
[404145136,1769877039588,-500.0,0.00035437,2]
[404145137,1769877039597,-150.0,0.000355,10]
[404145138,1769877039608,-168.0,0.00035568,2]
[404145139,1769877039617,-289.5,0.00035574,2]
[404145140,1769877039627,-150.0,0.00035574,2]
[404145141,1769877039639,-150.0,0.00035574,2]
[404145142,1769877039648,-150.0,0.00035574,2]
[404145143,1769877039658,-500.0,0.00035574,2]
[404145144,1769877039667,-38610.84818768,0.00035616,30]
[404145145,1769877039678,-13998.91946499,0.00035616,2]
[404145146,1769877039687,-151.0,0.000357,18]
[404145147,1769877039698,-150.0,0.00035711,2]
[404145148,1769877039707,-150.0,0.00035711,2]
[404145149,1769877039717,-500.0,0.00035711,2]
[404145150,1769877039727,-487.0,0.00035716,2]
[404145151,1769877039736,-487.0,0.00035716,2]
[404145152,1769877039746,-487.0,0.00035716,2]
[404145153,1769877039755,-715.08,0.00035716,2]
[404145154,1769877039764,-737.23535886,0.0003575,2]
[404145155,1769877039774,-624.40291933,0.0003575,7]
[404145156,1769877039783,-277.94415674,0.0003575,2]
[404145157,1769877039794,-500.29948214,0.0003575,2]
[404145158,1769877039803,-889.42130157,0.0003575,2]
[404145159,1769877039813,-1389.72078371,0.0003575,2]
[404145160,1769877039823,-1338.66127259,0.0003575,7]
[404145161,1769877039832,-1492.63373946,0.0003575,2]
[404145162,1769877039841,-428.50880707,0.0003575,2]
[404145163,1769877039851,-771.31585272,0.0003575,2]
[404145164,1769877039862,-1371.22818262,0.0003575,2]
[404145165,1769877039871,-2142.54403534,0.0003575,2]
[404145166,1769877039880,-3085.2634109,0.0003575,2]
[404145167,1769877039892,-1150.77831798,0.0003575,2]
[404145168,1769877039902,-484.15190287,0.0003575,2]
[404145169,1769877039912,-871.47342516,0.0003575,2]
[404145170,1769877039922,-1549.28608917,0.0003575,2]
[404145171,1769877039932,-2420.75951433,0.0003575,2]
[404145172,1769877039943,-3485.89370064,0.0003575,2]
[404145173,1769877039953,-4744.68864809,0.0003575,2]
[404145174,1769877039963,-647.03149413,0.0003575,7]
[404145175,1769877039972,-280.17162627,0.0003575,2]
[404145176,1769877039982,-504.30892728,0.0003575,2]
[404145177,1769877039991,-896.54920406,0.0003575,2]
[404145178,1769877040002,-1400.85813134,0.0003575,2]
[404145179,1769877040011,-446.7,0.00035815,30]
[404145180,1769877040021,-20162.00766259,0.00035816,2]
[404145181,1769877040031,-378.942317,0.00035834,30]
[404145182,1769877040042,-378.942317,0.00035834,30]
[404145183,1769877040051,-373.0599467,0.00035834,30]
[404145184,1769877040060,-150.0,0.00035848,2]
[404145185,1769877040070,-150.0,0.00035848,2]
[404145186,1769877040079,-500.0,0.00035848,2]
[404145187,1769877040088,-168.0,0.00035856,2]
[404145188,1769877040239,-168.0,0.00035985,2]
[404145189,1769877040251,-150.0,0.00035985,2]
[404145191,1769877040261,-150.0,0.00035985,2]
[404145192,1769877040271,-500.0,0.00035985,2]
[404145194,1769877040281,-276.81,0.00035985,15]
[404145195,1769877040290,-754.28327902,0.00036087,7]
[404145196,1769877040300,-6125.94,0.000361,120]
[404145197,1769877040309,-250.0,0.00036122,2]
[404145198,1769877040318,-238.20198396,0.00036122,2]
[404145200,1769877040327,-500.0,0.00036122,2]
[404145203,1769877040338,-2000.0,0.00036177,120]
[404145205,1769877040347,-257.75504,0.000362,120]
[404145207,1769877040358,-151.0,0.000362,18]
[404145209,1769877040367,-167.25,0.000362,2]
[404145211,1769877040377,-205.21292808,0.0003621,2]
[404145212,1769877040388,-722.02,0.00036216,60]
[404145215,1769877040397,-266.90902411,0.0003624,2]
[404145217,1769877040407,-168.0,0.00036257,2]
[404145218,1769877040416,-522.60105806,0.00036259,2]
[404145219,1769877040426,-151.0,0.00036278,31]
[404145220,1769877040436,-177.36267086,0.00036284,15]
[404145221,1769877040445,-200.0,0.00036284,10]
[404145222,1769877040454,-3110808.74128393,0.00036285,20]
[404145227,1769877040839,-250.0,0.00018524,2]
[404145228,1769877040850,-508.3023,0.00032877,10]
[404145229,1769877040860,-39889.71677986,0.00036285,20]
[404145232,1769877043729,-347.03,0.00025833,30]
[404145233,1769877043740,-4181.3182444,0.00030201,2]
[404145234,1769877043750,-508.3023,0.00033425,14]
[404145235,1769877043761,-631.9,0.00036275,3]
[404145236,1769877043771,-12371.931823,0.00036285,20]
[404145280,1769877046636,-694.06,0.00028601,30]
[404145282,1769877046647,-603.15331,0.00031368,30]
[404145285,1769877046658,-437.94669,0.00031368,30]
[404145288,1769877046667,-62.05331,0.00032877,10]
[404145290,1769877046759,-437.94669,0.00032877,10]
[404145291,1769877046768,-58.42248147,0.00034136,30]
[404145292,1769877047048,-116.9533207,0.00034136,30]
[404145294,1769877047194,-1212.75419783,0.00034136,30]
[404145295,1769877047203,-1231.43839819,0.00035922,2]
[404145296,1769877047214,-3116.17567048,0.00035922,2]
[404145297,1769877047226,-501.0,0.00035922,2]
[404145298,1769877050297,-631.89999998,0.00015246,2]
[404145299,1769877053560,-508.3023,0.00015094,2]
[404145300,1769877056024,-4181.3182444,0.00015094,2]
[404145301,1769877057444,-310.3794556,0.00015094,2]
[404145302,1769877057465,-36.6505444,0.00015246,2]
[404145312,1769877481702,155.97,9.99e-06,2]
[404145313,1769877481991,155.97,9.99e-06,2]
[404145314,1769877482280,155.95,9.99e-06,2]
[404145324,1769877758662,404.59683959,0.00030136,120]
[404145326,1769877835389,1000.0,0.00030137,120]
[404145327,1769877845321,-668.56272238,0.00011418,2]
[404145333,1769878010287,-508.3023,0.00011304,2]
[404145334,1769878012434,-310.3794556,0.00011304,2]
[404145335,1769878013887,-4181.3182444,0.00011304,2]
[404145336,1769878057590,-300.0,0.00011079,2]
[404145337,1769878058727,-300.0,0.00011079,2]
[404145341,1769878149157,-4400.0,0.00011079,2]
[404145342,1769878149179,-150.0,0.00011135,2]
[404145343,1769878149203,-5000.0,0.00011191,2]